{"text_format":"1","workbook":"xlsx","n_sheets":8,"sheets":["Inhalt","Umrechnung","Portionen-Kalkulator","Torten-Kalkulator","Torten-Aufbau","Torten-Portionen","FAQ","Änderungsnachweis"],"not_rendered":{"charts":0,"images":9,"macros":1,"external_links":1,"defined_names":21,"comments":0,"pivot_tables":0},"unopened":[],"bounds":{"document_bytes":16777216,"sheet_cells":100000,"rows_first":2000,"rows_last":500,"rows_between":2000,"halvings":0,"cell_chars":16384,"cell_head_chars":4096},"cells_cut":0,"cells_raw":0,"read":"whole","date_system":"1900"}

{"sheet":"Inhalt","index":0,"n_rows":49,"n_cols":14,"rows_kept":49,"cut":false,"hidden":false,"merged":[[3,0,3,12],[5,0,5,12],[0,0,0,10],[1,0,1,10],[13,1,15,1],[8,0,8,12],[10,0,10,12],[13,4,17,11],[20,4,23,11],[27,4,30,11],[34,4,37,11],[41,4,44,11],[48,4,51,11]]}
["Torten-Umrechnungs-Tool",null,null,null,null,null,null,null,null,null,null,null,null,225]
[{"$f":"Änderungsnachweis!A1","v":"© 2016-2021 V08 | Einfach Backen - Marcel Paa"}]
[]
["Herzlichen Dank für die Nutzung des \"Torten-Umrechnungs-Tools\" - ich wünsche Dir weiterhin viel Erfolg beim Backen & Dekorieren, mit backfrischen Grüssen"]
[]
["Marcel Paa"]
[]
[]
["Beim Öffnen der Datei unbedingt \"Makros aktivieren\" wählen"]
[]
[]
[null,"(Bitte auf Knopf klicken, um direkt in die entsprechende Mappe zu gelangen)"]
[]
[null,null,null,null,"Originalrezept ist bekannt\nIn dieser Mappe kannst Du einzelne Originalrezepte der Torten in andere Grössen und Formen umrechnen. Gib die Originalgrösse (Durchmesser/Höhe oder Länge/Breite/Höhe) inkl. Zutaten und die Wunschgrösse (Durchmesser/Höhe oder Länge/Breite/Höhe) ein und das Tool rechnet Dir automatisch die benötigten Zutaten in die neue Menge um."]
[]
[]
[]
[]
[]
[]
[null,null,null,null,"Grösse der Torte ist bekannt\nHier kannst Du die Grösse Deiner Torten kalkulieren: d.h. Du weisst, wie gross Du die Torten machen möchtest, und das Tool rechnet Dir aus, wieviele Portionen Deine Wunschtorten ergeben. Es wird zwischen runden und eckigen Torten unterschieden. "]
[]
[]
[]
[]
[]
[]
[null,null,null,null,"Anzahl Portionen sind bekannt\nHier kannst Du die Portionen der Torten kalkulieren:  d.h. Du weisst, wieviele Portionen Du erhalten möchtest und das Tool rechnet Dir aus, wie grosse Deine Wunschtorten sein sollten."]
[]
[]
[]
[]
[]
[]
[null,null,null,null,"Aufbau mehrstöckiger Torten\nIn dieser Mappe kannst Du für mehrstöckige Torten mit den Tortengrössen \"spielen\": d.h. Du gibst den Durchmesser (bzw. Länge und Breite) der untersten Torte und die Höhe jeder einzelnen Etage ein und das Tool berechnet Dir die ungefähre Anzahl Portionen."]
[]
[]
[]
[]
[]
[]
[null,null,null,null,"Auflistung von Torten-Portionen je Tortengrösse\nIn dieser Mappe findest Du eine Auflistung von Torten von 4 bis 50cm Durchmesser und einer Höhe von 6 bis 14cm, wo Du die ungefähre Anzahl Portionen (Minimum und Maximum) ablesen kannst. In dieser Mappe können keine Eingaben gemacht werden."]
[]
[]
[]
[]
[]
[]
[null,null,null,null,"Frequently Asked Questions\nUnter \"FAQ (Frequently Asked Questions)\" findest Du Antworten auf verschiedene Fragen; solltest Du weitere Fragen haben, lass es mich bitte wissen, so dass ich diese Mappe entsprechend nachführen kann. In dieser Mappe können keine Eingaben gemacht werden."]

{"sheet":"Umrechnung","index":1,"n_rows":38,"n_cols":20,"rows_kept":38,"cut":false,"hidden":false,"merged":[[0,0,0,16],[31,15,31,16],[32,15,32,16],[33,15,33,16],[25,15,25,16],[18,12,18,15],[1,0,1,16],[18,1,18,6],[24,12,24,14],[36,15,36,16],[37,15,37,16],[34,15,34,16],[35,15,35,16],[26,15,26,16],[27,15,27,16],[28,15,28,16],[29,15,29,16],[30,15,30,16]]}
["Torten-Umrechnung",null,null,null,null,null,null,null,null,null,null,null,null,null,null,null,null,null,null,225]
[{"$f":"Änderungsnachweis!A1","v":"© 2016-2021 V08 | Einfach Backen - Marcel Paa"}]
["Hinweise"]
["·","nur in den hell markierten Felder sind Eingaben möglich; in den dunkel gefärbten Zellen erscheinen die berechneten Resultate (diese können nicht verändert werden)"]
["·","in der Rubrik \"1 Originalrezept\" können die Masse des Originalrezeptes als Berechnungsgrundlage eingegeben werden"]
["·","in der Rubrik \"2 Wunschrezept\" können die Masse des Wunschrezeptes eingegeben werden"]
["·","in der Rubrik \"3 Ergebnis/Faktor\" erscheint der berechnete Faktor zur Rezept-Umrechnung (hier sind keine Eingaben möglich)"]
["·","in der Rubrik \"4 Rezept-Umrechnung\" werden die Zutaten und die Mengen des Originalrezeptes eingeben, diese werden automatisch auf die Wunschgrösse der Torte umgerechnet"]
[]
[1,"Originalrezept",null,null,null,null,null,null,null,null,null,2,"Wunschrezept"]
["a)","Springform, Muffins und andere runde Backformen",null,null,null,null,null,null,null,null,null,"a)","Springform, Muffins und andere runde Backformen"]
[null,"Durchmesser in cm",null,null,null,null,null,{"$f":"IF(J12=\"\",\"\",\"rund\")","v":""},null,null,{"$f":"J12/2","v":0},null,"Durchmesser in cm",null,null,{"$f":"IF(R12=\"\",\"\",\"rund\")","v":""},null,null,{"$f":"R12/2","v":0}]
[null,"Höhe in cm",null,null,null,null,{"$f":"IF(J13=\"\",0,IF(H12=\"rund\",((J12/2)*(J12/2)*3.14*J13/$T$1)-1))","v":0},{"$f":"IF(J13=\"\",0,IF(H12=\"rund\",((J12/2)*(J12/2)*3.14*J13/$T$1)+1))","v":0},null,null,{"$f":"K12*K12*3.14159265359*J13","v":0},null,"Höhe in cm",null,{"$f":"IF(R13=\"\",0,IF(P12=\"rund\",((R12/2)*(R12/2)*3.14*R13/$T$1)-1))","v":0},{"$f":"IF(R13=\"\",0,IF(P12=\"rund\",((R12/2)*(R12/2)*3.14*R13/$T$1)+1))","v":0},null,null,{"$f":"S12*S12*3.14159265359*R13","v":0}]
["b)","Backrahmen, Blechkuchen eckig",null,null,null,null,null,null,null,null,null,"b)","Backrahmen, Blechkuchen eckig"]
[null,"Länge in cm",null,null,null,null,null,{"$f":"IF(J15=\"\",\"\",\"eckig\")","v":""},null,null,null,null,"Länge in cm",null,null,{"$f":"IF(R15=\"\",\"\",\"eckig\")","v":""}]
[null,"Breite in cm",null,null,null,null,null,null,null,null,null,null,"Breite in cm"]
[null,"Höhe in cm",null,null,null,null,{"$f":"IF(J17=\"\",0,IF(H15=\"eckig\",J15*J16*J17/$T$1-1))","v":0},{"$f":"IF(J17=\"\",0,IF(H15=\"eckig\",J15*J16*J17/$T$1+1))","v":0},null,null,{"$f":"J15*J16*J17","v":0},null,"Höhe in cm",null,{"$f":"IF(R17=\"\",0,IF(P15=\"eckig\",R15*R16*R17/$T$1-1))","v":0},{"$f":"IF(R17=\"\",0,IF(P15=\"eckig\",R15*R16*R17/$T$1+1))","v":0},null,null,{"$f":"R15*R16*R17","v":0}]
["c)","Andere Backformen, Kugel, Kegel etc. ",null,null,null,null,null,null,null,null,null,"c)","Ander Backformen, Kugel, Kegel etc. "]
[null,"Fülle die Backform mit Zucker etwa 1cm unter den Rand und \ntrage das Gewicht in Gramm ein",null,null,null,null,null,null,null,{"$f":"IF(J20=\"\",\"\",\"andere\")","v":""},null,null,"Fülle die Backform mit Zucker etwa 1cm unter den Rand und \ntrage das Gewicht in Gramm ein",null,null,null,null,{"$f":"IF(R20=\"\",\"\",\"andere\")","v":""}]
[null,"Gewicht in g",null,null,null,null,{"$f":"IF(J20=\"\",0,IF(J19=\"andere\",J20/$T$1-1,\"\"))","v":0},{"$f":"IF(J20=\"\",0,IF(J19=\"andere\",J20/$T$1+1,\"\"))","v":0},null,null,null,null,"Gewicht in g",null,{"$f":"IF(R20=\"\",0,IF(R19=\"andere\",R20/$T$1-1,\"\"))","v":0},{"$f":"IF(R20=\"\",0,IF(R19=\"andere\",R20/$T$1+1,\"\"))","v":0}]
[]
[null,null,null,null,null,null,"ungefähre Anzahl Portionen/Stück",{"$f":"IF(SUM(J12:J17)=\"\",\"\",SUM(G13+G17+G20))","v":0},"bis",{"$f":"SUM(H13+H17+H20)","v":0},null,null,null,null,"ungefähre Anzahl Portionen/Stück",{"$f":"SUM(O13+O17+O20)","v":0},"bis",{"$f":"SUM(P13+P17+P20)","v":0}]
[]
[3,"Ergebnis/Faktor",null,null,null,null,null,null,null,null,null,4,"Rezept-Umrechnung"]
[null,"Original",null,null,"ð","Wunsch",null,null,null,null,null,null,"Bitte die Daten in den orangen Feldern mit den eigenen überschreiben",null,null,null,"x Faktor",{"$f":"SUM(J28:J38)","v":0}]
["a)","Springform, Muffins und andere runde Backformen",null,null,null,null,null,null,null,null,null,null,"Original in g","Einheit","Zutaten","Bemerkungen",null,"Wunsch in g"]
[null,"Springform, Muffins, Backformen rund",null,null,"ð","Springform, Backformen rund",null,null,null,null,null,null,null,"Stk","Eier",{"$f":"IF(M27=\"\",\"\",IF(O27=\"Eier\",\"1 Stk = ca. 50 g\",\"\"))","v":""},null,{"$f":"M27*R$25","v":0}]
[null,"Springform, Muffins, Backformen rund",null,null,"ð","Backrahmen, Blechkuchen eckig",null,null,null,{"$f":"IF(K13=0,0,S13/K13)","v":0},null,null,null,"g","Zucker",{"$f":"IF(M28=\"\",\"\",IF(O28=\"Eier\",\"1 Stk = 50 g\",\"\"))","v":""},null,0]
[null,"Springform, Muffins, Backformen rund",null,null,"ð","Andere Backformen, Kugel, Kegel etc. ",null,null,null,{"$f":"IF(K13=0,0,S17/K13)","v":0},null,null,null,"etwas","Zitronenabrieb","",null,0]
["b)","Backrahmen, Blechkuchen eckig",null,null,null,null,null,null,null,{"$f":"IF(K13=0,0,R20/K13)","v":0},null,null,null,"Prise","Salz","",null,0]
[null,"Backrahmen, Blechkuchen eckig",null,null,"ð","Springform, Backformen rund",null,null,null,null,null,null,null,"g","Butter","",null,0]
[null,"Backrahmen, Blechkuchen eckig",null,null,"ð","Backrahmen, Blechkuchen eckig",null,null,null,{"$f":"IF(K17=0,0,S13/K17)","v":0},null,null,null,"g","Weissmehl","",null,0]
[null,"Backrahmen, Blechkuchen eckig",null,null,"ð","Andere Backformen, Kugel, Kegel etc. ",null,null,null,{"$f":"IF(K17=0,0,S17/K17)","v":0},null,null,null,null,null,"",null,0]
["c)","Andere Backformen, Kugel, Kegel etc. ",null,null,null,null,null,null,null,{"$f":"IF(K17=0,0,R20/K17)","v":0},null,null,null,null,null,"",null,0]
[null,"Ander Backformen, Kugel, Kegel etc. ",null,null,"ð","Springform, Backformen rund",null,null,null,null,null,null,null,null,null,"",null,0]
[null,"Ander Backformen, Kugel, Kegel etc. ",null,null,"ð","Backrahmen, Blechkuchen eckig",null,null,null,{"$f":"IF(J20=0,0,S13/J20)","v":0},null,null,null,null,null,"",null,0]
[null,"Ander Backformen, Kugel, Kegel etc. ",null,null,"ð","Andere Backformen, Kugel, Kegel etc. ",null,null,null,{"$f":"IF(J20=0,0,S17/J20)","v":0},null,null,null,null,null,"",null,0]
[null,null,null,null,null,null,null,null,null,{"$f":"IF(J20=0,0,R20/J20)","v":0},null,null,null,null,null,"",null,0]

{"sheet":"Portionen-Kalkulator","index":2,"n_rows":33,"n_cols":20,"rows_kept":33,"cut":false,"hidden":false,"merged":[[0,0,0,16],[1,0,1,16]]}
["Portionen-Kalkulator",null,null,null,null,null,null,null,null,null,null,null,null,null,null,null,null,null,null,225]
[{"$f":"Änderungsnachweis!A1","v":"© 2016-2021 V08 | Einfach Backen - Marcel Paa"}]
["Hinweise"]
["·","Hier kannst Du durch die Eingaben von Durchmesser und Tortenhöhe kalkulieren, welchen Durchmesser die gewünschte Torte in etwa haben müssen, d.h. für wieviele Portionen/Stück Deine Torte "]
["·","reichen würden. So kannst Du z.B. eine mehrstöckige Torte einfach kalkulieren - Dies sind Richtwerte, welche je nach Torte/Füllung variieren können. Alle Angaben ohne Gewähr. "]
[]
["a)","Springform, Muffins und andere runde Backformen"]
[null,null,null,null,null,null,null,null,null,null,null,null,null,null,null,"Min",null,"Max"]
[null,"Torten Ø in cm",null,null,null,null,null,null,"Torten-Höhe cm",null,null,null,null,null,"ergibt Portionen/Stück",{"$f":"IF($D9=\"\",0,IF($J9=\"\",0,($D9/2)*($D9/2)*$T$9*$J9/$T$1-1))","v":0},"bis",{"$f":"IF($D9=\"\",0,IF($J9=\"\",0,($D9/2)*($D9/2)*$T$9*$J9/$T$1+1))","v":0},null,3.14]
[]
[null,"Torten Ø in cm",null,null,null,null,null,null,"Torten-Höhe cm",null,null,null,null,null,"ergibt Portionen/Stück",{"$f":"IF($D11=\"\",0,IF($J11=\"\",0,($D11/2)*($D11/2)*$T$9*$J11/$T$1-1))","v":0},"bis",{"$f":"IF($D11=\"\",0,IF($J11=\"\",0,($D11/2)*($D11/2)*$T$9*$J11/$T$1+1))","v":0}]
[]
[null,"Torten Ø in cm",null,null,null,null,null,null,"Torten-Höhe cm",null,null,null,null,null,"ergibt Portionen/Stück",{"$f":"IF($D13=\"\",0,IF($J13=\"\",0,($D13/2)*($D13/2)*$T$9*$J13/$T$1-1))","v":0},"bis",{"$f":"IF($D13=\"\",0,IF($J13=\"\",0,($D13/2)*($D13/2)*$T$9*$J13/$T$1+1))","v":0}]
[]
[null,"Torten Ø in cm",null,null,null,null,null,null,"Torten-Höhe cm",null,null,null,null,null,"ergibt Portionen/Stück",{"$f":"IF($D15=\"\",0,IF($J15=\"\",0,($D15/2)*($D15/2)*$T$9*$J15/$T$1-1))","v":0},"bis",{"$f":"IF($D15=\"\",0,IF($J15=\"\",0,($D15/2)*($D15/2)*$T$9*$J15/$T$1+1))","v":0}]
[]
[null,"Torten Ø in cm",null,null,null,null,null,null,"Torten-Höhe cm",null,null,null,null,null,"ergibt Portionen/Stück",{"$f":"IF($D17=\"\",0,IF($J17=\"\",0,($D17/2)*($D17/2)*$T$9*$J17/$T$1-1))","v":0},"bis",{"$f":"IF($D17=\"\",0,IF($J17=\"\",0,($D17/2)*($D17/2)*$T$9*$J17/$T$1+1))","v":0}]
[]
[null,null,null,null,null,null,null,null,null,null,null,null,null,null,"Total Portionen/Stück",{"$f":"SUM(P9:P17)","v":0},"bis",{"$f":"SUM(R9:R17)","v":0}]
[]
["b)","Backrahmen, Blechkuchen eckig"]
[null,null,null,null,null,null,null,null,null,null,null,null,null,null,null,"Min",null,"Max"]
[null,"Torten-Breite cm",null,null,null,"Torten-Länge cm",null,null,"Torten-Höhe cm",null,null,null,null,null,"ergibt Portionen/Stück",{"$f":"IF($D23=\"\",0,IF($G23=\"\",0,IF($J23=\"\",0,$D23*$G23*$J23/$T$1-1)))","v":0},"bis",{"$f":"IF($D23=\"\",0,IF($G23=\"\",0,IF($J23=\"\",0,$D23*$G23*$J23/$T$1+1)))","v":0}]
[]
[null,"Torten-Breite cm",null,null,null,"Torten-Länge cm",null,null,"Torten-Höhe cm",null,null,null,null,null,"ergibt Portionen/Stück",{"$f":"IF($D25=\"\",0,IF($G25=\"\",0,IF($J25=\"\",0,$D25*$G25*$J25/$T$1-1)))","v":0},"bis",{"$f":"IF($D25=\"\",0,IF($G25=\"\",0,IF($J25=\"\",0,$D25*$G25*$J25/$T$1+1)))","v":0}]
[]
[null,"Torten-Breite cm",null,null,null,"Torten-Länge cm",null,null,"Torten-Höhe cm",null,null,null,null,null,"ergibt Portionen/Stück",{"$f":"IF($D27=\"\",0,IF($G27=\"\",0,IF($J27=\"\",0,$D27*$G27*$J27/$T$1-1)))","v":0},"bis",{"$f":"IF($D27=\"\",0,IF($G27=\"\",0,IF($J27=\"\",0,$D27*$G27*$J27/$T$1+1)))","v":0}]
[]
[null,"Torten-Breite cm",null,null,null,"Torten-Länge cm",null,null,"Torten-Höhe cm",null,null,null,null,null,"ergibt Portionen/Stück",{"$f":"IF($D29=\"\",0,IF($G29=\"\",0,IF($J29=\"\",0,$D29*$G29*$J29/$T$1-1)))","v":0},"bis",{"$f":"IF($D29=\"\",0,IF($G29=\"\",0,IF($J29=\"\",0,$D29*$G29*$J29/$T$1+1)))","v":0}]
[]
[null,"Torten-Breite cm",null,null,null,"Torten-Länge cm",null,null,"Torten-Höhe cm",null,null,null,null,null,"ergibt Portionen/Stück",{"$f":"IF($D31=\"\",0,IF($G31=\"\",0,IF($J31=\"\",0,$D31*$G31*$J31/$T$1-1)))","v":0},"bis",{"$f":"IF($D31=\"\",0,IF($G31=\"\",0,IF($J31=\"\",0,$D31*$G31*$J31/$T$1+1)))","v":0}]
[]
[null,null,null,null,null,null,null,null,null,null,null,null,null,null,"Total Portionen/Stück",{"$f":"SUM(P23:P31)","v":0},"bis",{"$f":"SUM(R23:R31)","v":0}]

{"sheet":"Torten-Kalkulator","index":3,"n_rows":39,"n_cols":20,"rows_kept":39,"cut":false,"hidden":false,"merged":[[16,4,16,5],[0,0,0,16],[1,0,1,16],[10,4,10,5],[12,4,12,5],[14,4,14,5],[38,4,38,5],[18,4,18,5],[24,4,24,5],[26,4,26,5],[28,4,28,5],[30,4,30,5],[32,4,32,5]]}
["Torten-Kalkulator",null,null,null,null,null,null,null,null,null,null,null,null,null,null,null,null,null,null,225]
[{"$f":"Änderungsnachweis!A1","v":"© 2016-2021 V08 | Einfach Backen - Marcel Paa"}]
["Hinweise"]
["·","Hier kannst Du die ungefähre Grösse der Torte (Durchmesser oder Länge/Breite) berechnen, wenn die Anzahl Tortenstücke bekannt ist"]
["·","Dies sind Richtwerte, welche je nach Torte/Füllung variieren können. Alle Angaben ohne Gewähr. "]
[]
["a)","Springform, Muffins und andere runde Backformen"]
[null,"Du weisst wieviele Portionen Du benötigst, aber nicht welchen Durchmesser die Torte haben sollte?"]
[null,"Hier kannst Du durch die  Eingaben von Anzahl Portionen und gewünschter Torten-Höhe berechnen, welchen Durchmesser die Torte haben sollten . "]
[null,null,null,null,null,null,null,null,null,null,null,null,null,null,null,"Min",null,"Max"]
[null,"gewünschte Anzahl Port./Stk",null,null,null,null,null,null,null,null,null,null,"Torten-Höhe cm",6,"Torten Ø in cm",{"$f":"IF(E11=\"\",0,IF(ISODD(ROUNDUP($T11,0)),1,0)+ROUNDUP($T11,0)-2)","v":0},"bis",{"$f":"IF(E11=\"\",0,IF(ISODD(ROUNDUP($T11,0)),1,0)+ROUNDUP($T11,0))","v":0},null,{"$f":"IF(E11=\"\",0,SQRT(E11*$T$1/N11/3.14)*2)","v":0}]
[]
[null,null,null,null,{"$f":"IF($E$11=\"\",\"\",$E$11)","v":""},null,null,null,null,null,null,null,"Torten-Höhe cm",8,"Torten Ø in cm",{"$f":"IF(E13=\"\",0,IF(ISODD(ROUNDUP($T13,0)),1,0)+ROUNDUP($T13,0)-2)","v":0},"bis",{"$f":"IF(E13=\"\",0,IF(ISODD(ROUNDUP($T13,0)),1,0)+ROUNDUP($T13,0))","v":0},null,{"$f":"IF(E13=\"\",0,SQRT(E13*$T$1/N13/3.14)*2)","v":0}]
[]
[null,null,null,null,{"$f":"IF($E$11=\"\",\"\",$E$11)","v":""},null,null,null,null,null,null,null,"Torten-Höhe cm",10,"Torten Ø in cm",{"$f":"IF(E15=\"\",0,IF(ISODD(ROUNDUP($T15,0)),1,0)+ROUNDUP($T15,0)-2)","v":0},"bis",{"$f":"IF(E15=\"\",0,IF(ISODD(ROUNDUP($T15,0)),1,0)+ROUNDUP($T15,0))","v":0},null,{"$f":"IF(E15=\"\",0,SQRT(E15*$T$1/N15/3.14)*2)","v":0}]
[]
[null,null,null,null,{"$f":"IF($E$11=\"\",\"\",$E$11)","v":""},null,null,null,null,null,null,null,"Torten-Höhe cm",12,"Torten Ø in cm",{"$f":"IF(E17=\"\",0,IF(ISODD(ROUNDUP($T17,0)),1,0)+ROUNDUP($T17,0)-2)","v":0},"bis",{"$f":"IF(E17=\"\",0,IF(ISODD(ROUNDUP($T17,0)),1,0)+ROUNDUP($T17,0))","v":0},null,{"$f":"IF(E17=\"\",0,SQRT(E17*$T$1/N17/3.14)*2)","v":0}]
[]
[null,null,null,null,{"$f":"IF($E$11=\"\",\"\",$E$11)","v":""},null,null,null,null,null,null,null,"Torten-Höhe cm",14,"Torten Ø in cm",{"$f":"IF(E19=\"\",0,IF(ISODD(ROUNDUP($T19,0)),1,0)+ROUNDUP($T19,0)-2)","v":0},"bis",{"$f":"IF(E19=\"\",0,IF(ISODD(ROUNDUP($T19,0)),1,0)+ROUNDUP($T19,0))","v":0},null,{"$f":"IF(E19=\"\",0,SQRT(E19*$T$1/N19/3.14)*2)","v":0}]
[]
["b)","Backrahmen, Blechkuchen eckig"]
[null,"Du weisst wieviele Portionen Du benötigst, wie hoch und wie breit die Torte sein sollte, aber nicht wie lang sie sein sollte?"]
[null,"Hier kannst Du durch die  Eingaben von Anzahl Portionen , Torten-Höhe und Torten-Breite, die Länge der Torte berechnen."]
[null,null,null,null,null,null,null,null,null,null,null,null,null,null,null,"Min",null,"Max"]
[null,"gewünschte Anzahl Port./Stk",null,null,null,null,null,null,"Torten-Breite cm",null,null,null,"Torten-Höhe cm",6,"Torten-Länge cm",{"$f":"IF(E25=\"\",\"\",IF(J25=\"\",\"\",$T$1*E25/N25/J25-1))","v":""},"bis",{"$f":"IF(E25=\"\",\"\",IF(J25=\"\",\"\",$T$1*E25/N25/J25+1))","v":""}]
[]
[null,null,null,null,{"$f":"IF($E$25=\"\",\"\",$E$25)","v":""},null,null,null,null,{"$f":"IF($J$25=\"\",\"\",$J$25)","v":""},null,null,"Torten-Höhe cm",8,"Torten-Länge cm",{"$f":"IF(E27=\"\",\"\",IF(J27=\"\",\"\",$T$1*E27/N27/J27-1))","v":""},"bis",{"$f":"IF(E27=\"\",\"\",IF(J27=\"\",\"\",$T$1*E27/N27/J27+1))","v":""}]
[]
[null,null,null,null,{"$f":"IF($E$25=\"\",\"\",$E$25)","v":""},null,null,null,null,{"$f":"IF($J$25=\"\",\"\",$J$25)","v":""},null,null,"Torten-Höhe cm",10,"Torten-Länge cm",{"$f":"IF(E29=\"\",\"\",IF(J29=\"\",\"\",$T$1*E29/N29/J29-1))","v":""},"bis",{"$f":"IF(E29=\"\",\"\",IF(J29=\"\",\"\",$T$1*E29/N29/J29+1))","v":""}]
[]
[null,null,null,null,{"$f":"IF($E$25=\"\",\"\",$E$25)","v":""},null,null,null,null,{"$f":"IF($J$25=\"\",\"\",$J$25)","v":""},null,null,"Torten-Höhe cm",12,"Torten-Länge cm",{"$f":"IF(E31=\"\",\"\",IF(J31=\"\",\"\",$T$1*E31/N31/J31-1))","v":""},"bis",{"$f":"IF(E31=\"\",\"\",IF(J31=\"\",\"\",$T$1*E31/N31/J31+1))","v":""}]
[]
[null,null,null,null,{"$f":"IF($E$25=\"\",\"\",$E$25)","v":""},null,null,null,null,{"$f":"IF($J$25=\"\",\"\",$J$25)","v":""},null,null,"Torten-Höhe cm",14,"Torten-Länge cm",{"$f":"IF(E33=\"\",\"\",IF(J33=\"\",\"\",$T$1*E33/N33/J33-1))","v":""},"bis",{"$f":"IF(E33=\"\",\"\",IF(J33=\"\",\"\",$T$1*E33/N33/J33+1))","v":""}]
[]
["c)","Andere Backformen, Kugel, Kegel etc. "]
[null,"Du weisst wieviele Portionen Du benötigst, aber nicht welche Backformgrösse (Kugel, Kegel etc.) Du dazu braucht?"]
[null,"Hier kannst Du durch die  Eingabe von Anzahl Portionen das Gewicht der Tortenmasse berechnen. Nimm diejenige Form zum Backen Deiner Torte, wo das berechnete Gewicht an Zucker bis ca. 1 cm unter den Rand reinpasst."]
[null,null,null,null,null,null,null,null,null,null,null,null,null,null,null,"Min",null,"Max"]
[null,"gewünschte Anzahl Port./Stk",null,null,null,null,null,null,null,null,null,null,null,null,"Gewicht in g",{"$f":"IF(E39=\"\",\"\",$E$39*$T$1-100)","v":""},"bis",{"$f":"IF(E39=\"\",\"\",$E$39*$T$1+100)","v":""}]

{"sheet":"Torten-Aufbau","index":4,"n_rows":74,"n_cols":16,"rows_kept":74,"cut":false,"hidden":false,"merged":[[0,0,0,10],[1,0,1,10],[4,1,4,11],[51,10,51,11],[12,7,13,11],[15,10,15,11],[48,7,49,11],[33,10,33,11],[20,10,20,11],[26,10,26,11],[32,10,32,11],[21,10,21,11],[16,10,16,11],[27,10,27,11],[6,1,7,11],[70,10,70,11],[68,10,68,11],[52,10,52,11],[57,10,57,11],[63,10,63,11],[69,10,69,11],[58,10,58,11],[64,10,64,11],[56,10,56,11],[62,10,62,11],[53,10,53,11],[56,13,57,17],[62,13,63,17],[68,13,69,17],[11,13,12,17],[20,13,21,17],[26,13,27,17],[32,13,33,17],[47,13,48,17]]}
["Hochzeits- und Motivtorten Aufbau",null,null,null,null,null,null,null,null,null,null,null,null,225]
[{"$f":"Änderungsnachweis!A1","v":"© 2016-2021 V08 | Einfach Backen - Marcel Paa"}]
["Hinweise"]
["·","um einen proportional ausgeglichenen Aufbau zu erhalten sollte bei mehrstöckigen Torten die nächst höhere immer mindestens 3-4cm pro Seite kleiner sein"]
["·","davon ausgehend dass dieser Abstand bei jeder Etage der selbe ist, wird dies durch die Eingabe des Wertes a) für jede Etage automatisch übernommen und so die neuen, kleineren Werte der darauffolgenden Etage automatisch berechnet"]
["·","die Höhe der einzelnen Etagen können, dürfen durchaus unterschiedlich sein; daher ist bei jeder Etage die Höhe anzugeben"]
["·","wenn nebst der Torte noch ein Dessertbuffet angeboten wird, werden die Tortenstücke kleiner geschnitten - demzufolge sollte mit einer kleineren Anzahl Tortenstücke gerechnet werden. z.B. bei 100 Gästen mit Torte und Dessertbuffet kann mit einer etwas kleineren Torte mit 80 Portionen gerechnet werden."]
[]
["Mehrstöckige runde Torten"]
[]
[]
[null,null,null,null,null,null,null,"Abstand pro Seite bis zur nächsten Torte",null,null,null,null,null,{"$f":"IF(L12=\"Eingabe?\",\"ab der 2. Torte sollte jede darauffolgende im Durchmesser total 5-10 cm kleiner sein; dies wird nach der Eingabe der Werte der untersten Torte automatisch so berechnet\",CONCATENATE(\"ab der 2. Torte sollte jede darauffolgende im Durchmesser total \",L12*2,\" cm kleiner sein; dies wird nach der Eingabe der Werte der untersten Torte automatisch so berechnet\"))","v":"ab der 2. Torte sollte jede darauffolgende im Durchmesser total 0 cm kleiner sein; dies wird nach der Eingabe der Werte der untersten Torte automatisch so berechnet"}]
[]
[]
[]
[null,null,null,null,null,null,null,"Höhe unterste Torte"]
[null,null,null,null,null,null,null,"Durchmesser"]
[null,null,null,null,null,null,null,null,null,null,{"$f":"IF(K16=\"\",\"\",IF(K17=\"\",\"\",((K17/2)*(K17/2)*3.14*K16/$N$1)-1))","v":""},{"$f":"IF(K16=\"\",\"\",IF(K17=\"\",\"\",((K17/2)*(K17/2)*3.14*K16/$N$1)+1))","v":""},null,null,{"$f":"IF(K18=\"\",0,K18)","v":0},{"$f":"IF(L18=\"\",0,L18)","v":0}]
[]
[]
[null,null,null,null,null,null,null,"Höhe zweitunterste Torte",null,null,null,null,null,"Der Durchmesser der Torte wird automatisch berechnet: Durchmesser der untersten Torte minus 2x Abstand zur nächsten Torte gemäss Eingabe unter a)"]
[null,null,null,null,null,null,null,"Durchmesser",null,null,{"$f":"IF(K21=\"\",\"\",IF($L$12=\"\",\"\",IF($K$17=\"\",\"\",K17-(2*$L$12))))","v":""}]
[null,null,null,null,null,null,null,null,null,null,{"$f":"IF(K21=\"\",\"\",IF(K22=\"\",\"\",((K22/2)*(K22/2)*3.14*K21/$N$1)-1))","v":""},{"$f":"IF(K21=\"\",\"\",IF(K22=\"\",\"\",((K22/2)*(K22/2)*3.14*K21/$N$1)+1))","v":""},null,null,{"$f":"IF(K23=\"\",0,K23)","v":0},{"$f":"IF(L23=\"\",0,L23)","v":0}]
[]
[]
[]
[null,null,null,null,null,null,null,"Höhe zweitoberste Torte",null,null,null,null,null,"Der Durchmesser der Torte wird automatisch berechnet: Durchmesser der untersten Torte minus 2x Abstand zur nächsten Torte gemäss Eingabe unter a)"]
[null,null,null,null,null,null,null,"Durchmesser",null,null,{"$f":"IF(K27=\"\",\"\",IF($L$12=\"\",\"\",IF($K$17=\"\",\"\",K22-(2*$L$12))))","v":""}]
[null,null,null,null,null,null,null,null,null,null,{"$f":"IF(K27=\"\",\"\",IF(K28=\"\",\"\",((K28/2)*(K28/2)*3.14*K27/$N$1)-1))","v":""},{"$f":"IF(K27=\"\",\"\",IF(K28=\"\",\"\",((K28/2)*(K28/2)*3.14*K27/$N$1)+1))","v":""},null,null,{"$f":"IF(K29=\"\",0,K29)","v":0},{"$f":"IF(L29=\"\",0,L29)","v":0}]
[]
[]
[]
[null,null,null,null,null,null,null,"Höhe oberste Torte",null,null,null,null,null,"Der Durchmesser der Torte wird automatisch berechnet: Durchmesser der untersten Torte minus 2x Abstand zur nächsten Torte gemäss Eingabe unter a)"]
[null,null,null,null,null,null,null,"Durchmesser",null,null,{"$f":"IF(K33=\"\",\"\",IF($L$12=\"\",\"\",IF($K$17=\"\",\"\",K28-(2*$L$12))))","v":""}]
[null,null,null,null,null,null,null,null,null,null,{"$f":"IF(K33=\"\",\"\",IF(K34=\"\",\"\",((K34/2)*(K34/2)*3.14*K33/$N$1)-1))","v":""},{"$f":"IF(K33=\"\",\"\",IF(K34=\"\",\"\",((K34/2)*(K34/2)*3.14*K33/$N$1)+1))","v":""},null,null,{"$f":"IF(K35=\"\",0,K35)","v":0},{"$f":"IF(L35=\"\",0,L35)","v":0}]
[]
[]
[null,null,null,null,null,null,null,"Total Portionen/Stück",null,null,{"$f":"IF($L$12=\"\",\"\",SUM(O18:O35))","v":""},{"$f":"IF($L$12=\"\",\"\",SUM(P18:P35))","v":""},null,null,{"$f":"IF(K38=\"\",0,K38)","v":0},{"$f":"IF(L38=\"\",0,L38)","v":0}]
[]
[]
[]
[]
[]
[]
["Mehrstöckige eckige Torten"]
[]
[]
[null,null,null,null,null,null,null,"Abstand je Seite bis zur nächsten Torte",null,null,null,null,null,{"$f":"IF(L48=\"Eingabe?\",\"ab der 2. Torte sollte jede darauffolgende in der Fläche total 5-10 cm kleiner sein; dies wird nach der Eingabe der Werte der untersten Torte automatisch so berechnet\",CONCATENATE(\"ab der 2. Torte sollte jede darauffolgende in der Fläche total \",L48*2,\" cm kleiner sein; dies wird nach der Eingabe der Werte der untersten Torte automatisch so berechnet\"))","v":"ab der 2. Torte sollte jede darauffolgende in der Fläche total 0 cm kleiner sein; dies wird nach der Eingabe der Werte der untersten Torte automatisch so berechnet"}]
[]
[]
[]
[null,null,null,null,null,null,null,"Höhe unterste Torte"]
[null,null,null,null,null,null,null,"Länge"]
[null,null,null,null,null,null,null,"Breite"]
[null,null,null,null,null,null,null,null,null,null,{"$f":"IF(K52=\"\",\"\",$N55/$N$1-1)","v":""},{"$f":"IF(K52=\"\",\"\",$N55/$N$1+1)","v":""},null,{"$f":"K52*K53*K54","v":0},{"$f":"IF(K55=\"\",0,K55)","v":0},{"$f":"IF(L55=\"\",0,L55)","v":0}]
[]
[null,null,null,null,null,null,null,"Höhe zweitunterste Torte",null,null,null,null,null,"Länge/Breite der Torte wird automatisch berechnet: Länge/Breite der untersten Torte minus 2x Abstand zur nächsten Torte gemäss Eingabe unter a)"]
[null,null,null,null,null,null,null,"Länge",null,null,{"$f":"IF(K57=\"\",\"\",IF(K53=\"\",\"\",K53-(2*$L$48)))","v":""}]
[null,null,null,null,null,null,null,"Breite",null,null,{"$f":"IF(K57=\"\",\"\",IF(K54=\"\",\"\",K54-(2*$L$48)))","v":""}]
[null,null,null,null,null,null,null,null,null,null,{"$f":"IF(K58=\"\",\"\",IF(K59=\"\",\"\",IF(K57=\"\",\"\",$N60/$N$1-1)))","v":""},{"$f":"IF(K58=\"\",\"\",IF(K59=\"\",\"\",IF(K57=\"\",\"\",$N60/$N$1+1)))","v":""},null,{"$f":"K57*K58*K59","v":{"$error":"#VALUE!"}},{"$f":"IF(K60=\"\",0,K60)","v":0},{"$f":"IF(L60=\"\",0,L60)","v":0}]
[]
[]
[null,null,null,null,null,null,null,"Höhe zweitoberste Torte",null,null,null,null,null,"Länge/Breite der Torte wird automatisch berechnet: Länge/Breite der zweituntersten Torte minus 2x Abstand zur nächsten Torte gemäss Eingabe unter a)"]
[null,null,null,null,null,null,null,"Länge",null,null,{"$f":"IF(K63=\"\",\"\",IF(K58=\"\",\"\",K58-(2*$L$48)))","v":""}]
[null,null,null,null,null,null,null,"Breite",null,null,{"$f":"IF(K63=\"\",\"\",IF(K59=\"\",\"\",K59-(2*$L$48)))","v":""}]
[null,null,null,null,null,null,null,null,null,null,{"$f":"IF(K64=\"\",\"\",IF(K65=\"\",\"\",IF(K63=\"\",\"\",$N66/$N$1-1)))","v":""},{"$f":"IF(K64=\"\",\"\",IF(K65=\"\",\"\",IF(K63=\"\",\"\",$N66/$N$1+1)))","v":""},null,{"$f":"K63*K64*K65","v":{"$error":"#VALUE!"}},{"$f":"IF(K66=\"\",0,K66)","v":0},{"$f":"IF(L66=\"\",0,L66)","v":0}]
[]
[]
[null,null,null,null,null,null,null,"Höhe oberste Torte",null,null,null,null,null,"Länge/Breite der Torte wird automatisch berechnet: Länge/Breite der zweitobersten Torte minus 2x Abstand zur nächsten Torte gemäss Eingabe unter a)"]
[null,null,null,null,null,null,null,"Länge",null,null,{"$f":"IF(K69=\"\",\"\",IF(K64=\"\",\"\",K64-(2*$L$48)))","v":""}]
[null,null,null,null,null,null,null,"Breite",null,null,{"$f":"IF(K69=\"\",\"\",IF(K65=\"\",\"\",K65-(2*$L$48)))","v":""}]
[null,null,null,null,null,null,null,null,null,null,{"$f":"IF(K70=\"\",\"\",IF(K71=\"\",\"\",IF(K69=\"\",\"\",$N72/$N$1-1)))","v":""},{"$f":"IF(K70=\"\",\"\",IF(K71=\"\",\"\",IF(K69=\"\",\"\",$N72/$N$1+1)))","v":""},null,{"$f":"K69*K70*K71","v":{"$error":"#VALUE!"}},{"$f":"IF(K72=\"\",0,K72)","v":0},{"$f":"IF(L72=\"\",0,L72)","v":0}]
[]
[null,null,null,null,null,null,null,"Total Portionen/Stück",null,null,{"$f":"IF($L$48=\"\",\"\",SUM(O54:O72))","v":""},{"$f":"IF($L$48=\"\",\"\",SUM(P54:P72))","v":""}]

{"sheet":"Torten-Portionen","index":5,"n_rows":31,"n_cols":12,"rows_kept":31,"cut":false,"hidden":false,"merged":[[0,0,0,9],[1,0,1,9],[3,0,3,10],[4,0,6,0],[4,1,4,2],[4,3,4,4],[4,5,4,6],[4,7,4,8],[4,9,4,10],[5,1,5,2],[5,3,5,4],[5,5,5,6],[5,7,5,8],[5,9,5,10]]}
["Torten-Portionen",null,null,null,null,null,null,null,null,null,null,225]
[{"$f":"Änderungsnachweis!A1","v":"© 2016-2021 V08 | Einfach Backen - Marcel Paa"}]
[]
[]
["Boden Durchmesser",6,null,8,null,10,null,12,null,14]
[null,"Anzahl Portionen",null,"Anzahl Portionen",null,"Anzahl Portionen",null,"Anzahl Portionen",null,"Anzahl Portionen"]
[null,"min","max","min","max","min","max","min","max","min","max"]
[4,1,{"$f":"(($A8/2)*($A8/2)*3.14*B$5/$L$1)+1","v":1.3349333333333333},1,{"$f":"(($A8/2)*($A8/2)*3.14*D$5/$L$1)+1","v":1.4465777777777777},1,{"$f":"(($A8/2)*($A8/2)*3.14*F$5/$L$1)+1","v":1.5582222222222222},1,{"$f":"(($A8/2)*($A8/2)*3.14*H$5/$L$1)+1","v":1.6698666666666666},1,{"$f":"(($A8/2)*($A8/2)*3.14*J$5/$L$1)+1","v":1.781511111111111}]
[6,{"$f":"(($A9/2)*($A9/2)*3.14*B$5/$L$1)","v":0.75360000000000005},1.7536,{"$f":"(($A9/2)*($A9/2)*3.14*D$5/$L$1)","v":1.0048000000000001},2.0048000000000004,1,2.2560000000000002,{"$f":"(($A9/2)*($A9/2)*3.14*H$5/$L$1)-1","v":0.5072000000000001},2.5072000000000001,{"$f":"(($A9/2)*($A9/2)*3.14*J$5/$L$1)-1","v":0.75840000000000019},2.7584]
[8,{"$f":"(($A10/2)*($A10/2)*3.14*B$5/$L$1)","v":1.3397333333333332},2.3397333333333332,{"$f":"(($A10/2)*($A10/2)*3.14*D$5/$L$1)-1","v":0.78631111111111118},2.786311111111111,{"$f":"(($A10/2)*($A10/2)*3.14*F$5/$L$1)-1","v":1.2328888888888891},3.2328888888888891,1.6794666666666664,3.6794666666666664,2.1260444444444446,4.1260444444444442]
[10,{"$f":"(($A11/2)*($A11/2)*3.14*B$5/$L$1)-1","v":1.0933333333333333},3.0933333333333333,1.7911111111111113,3.7911111111111113,2.4888888888888889,4.4888888888888889,3.1866666666666665,5.1866666666666665,3.8844444444444441,5.8844444444444441]
[12,2.0144000000000002,4.0144000000000002,3.0192000000000005,5.0192000000000005,4.024,6.024,5.0288000000000004,7.0288000000000004,6.0336000000000007,8.0335999999999999]
[14,3.1029333333333335,5.1029333333333335,4.4705777777777786,6.4705777777777786,5.8382222222222229,7.8382222222222229,7.2058666666666671,9.2058666666666671,8.5735111111111113,10.573511111111111]
[16,4.3589333333333329,6.3589333333333329,6.1452444444444447,8.1452444444444438,7.9315555555555566,9.9315555555555566,9.7178666666666658,11.717866666666666,11.504177777777779,13.504177777777779]
[18,5.7824,7.7824,8.0432000000000006,10.043200000000001,10.304,12.304,12.5648,14.5648,14.825600000000001,16.825600000000001]
[20,7.3733333333333331,9.3733333333333331,10.164444444444445,12.164444444444445,12.955555555555556,14.955555555555556,15.746666666666666,17.746666666666666,18.537777777777777,20.537777777777777]
[22,9.131733333333333,11.131733333333333,12.508977777777778,14.508977777777778,15.886222222222223,17.886222222222223,19.263466666666666,21.263466666666666,22.640711111111109,24.640711111111109]
[24,11.057600000000001,13.057600000000001,15.076800000000002,17.076800000000002,19.096,21.096,23.115200000000002,25.115200000000002,27.134400000000003,29.134400000000003]
[26,13.150933333333333,15.150933333333333,17.867911111111109,19.867911111111109,22.584888888888887,24.584888888888887,27.301866666666665,29.301866666666665,32.01884444444444,34.01884444444444]
[28,15.411733333333334,17.411733333333334,20.882311111111115,22.882311111111115,26.352888888888891,28.352888888888891,31.823466666666668,33.823466666666668,37.294044444444445,39.294044444444445]
[30,17.84,19.84,24.12,26.12,30.4,32.4,36.68,38.68,42.96,44.96]
[32,20.435733333333332,22.435733333333332,27.580977777777779,29.580977777777779,34.726222222222226,36.726222222222226,41.871466666666663,43.871466666666663,49.016711111111114,51.016711111111114]
[34,23.198933333333333,25.198933333333333,31.265244444444448,33.265244444444448,39.33155555555556,41.33155555555556,47.397866666666665,49.397866666666665,55.464177777777778,57.464177777777778]
[36,26.1296,28.1296,35.172800000000002,37.172800000000002,44.216000000000001,46.216000000000001,53.2592,55.2592,62.302400000000006,64.302400000000006]
[38,29.227733333333333,31.227733333333333,39.303644444444444,41.303644444444444,49.379555555555555,51.379555555555555,59.455466666666666,61.455466666666666,69.531377777777777,71.531377777777777]
[40,32.493333333333332,34.493333333333332,43.657777777777781,45.657777777777781,54.822222222222223,56.822222222222223,65.986666666666665,67.986666666666665,77.151111111111106,79.151111111111106]
[42,35.926400000000001,37.926400000000001,48.235199999999999,50.235199999999999,60.543999999999997,62.543999999999997,72.852800000000002,74.852800000000002,85.161600000000007,87.161600000000007]
[44,39.526933333333332,41.526933333333332,53.035911111111112,55.035911111111112,66.544888888888892,68.544888888888892,80.053866666666664,82.053866666666664,93.562844444444437,95.562844444444437]
[46,43.294933333333333,45.294933333333333,58.05991111111112,60.05991111111112,72.824888888888893,74.824888888888893,87.589866666666666,89.589866666666666,102.35484444444447,104.35484444444447]
[48,47.230400000000003,49.230400000000003,63.307200000000009,65.307200000000009,79.384,81.384,95.460800000000006,97.460800000000006,111.53760000000001,113.53760000000001]
[50,51.333333333333336,53.333333333333336,68.777777777777771,70.777777777777771,86.222222222222229,88.222222222222229,103.66666666666667,105.66666666666667,121.11111111111111,123.11111111111111]

{"sheet":"FAQ","index":6,"n_rows":25,"n_cols":5,"rows_kept":25,"cut":false,"hidden":false,"merged":[[0,0,0,2],[1,0,1,2],[18,0,18,3],[3,0,3,3],[19,1,19,3],[5,1,5,3],[9,1,9,3],[6,1,6,3],[7,1,7,3],[11,1,11,3],[8,0,8,3],[10,0,10,3],[4,1,4,3],[22,1,22,3],[23,1,23,3],[24,1,24,3],[12,0,12,3],[14,0,14,3],[21,0,21,3],[13,1,13,3],[17,1,17,3],[15,1,15,3],[16,0,16,3],[20,1,20,3]]}
["FAQ (Frequently Asked Questions)",null,null,null,225]
[{"$f":"Änderungsnachweis!A1","v":"© 2016-2021 V08 | Einfach Backen - Marcel Paa"}]
[]
["Allgemein"]
["·","Was geschieht, wenn ich auf den Knopf \"Eingaben löschen\" drücke?\nDadurch läuft im Hintergrund ein Makro ab, welches alle Deine gemachten Eingaben löscht, so dass Du wieder eine leere/neue Mappe für Deine Berechnungen zur Verfügung hast."]
["·","Warum funktionieren bei mir der Knopf \"Eingaben löschen\" nicht?\nVermutlich hast Du das Excel geöffnet, ohne die Makros zu aktivieren; Bitte schliesse Excel und öffne es erneut, indem Du auf \"Makros aktivieren\" klickst."]
["·","Warum sind die Mappen schreibgeschützt?\nUm zu verhindern, dass versehentlich die sehr komplexen Formeln gelöscht werden, wurden die Mappe geschützt; dies ist vor allem auch für die Sicherheit für Dich als Benutzer und um einen Support-Aufwand zu vermeiden/minimieren."]
["·","Warum sind einzelne Zellen heller und andere dunkel markiert/hinterlegt?\nIn den hell hinterlegten Feldern kannst Du Deine Eingaben machen, welche dann in den dunkel hinterlegten Feldern berechnet werden. Die dunklen Felder können nicht bearbeitet werden."]
["Mappe Umrechnung"]
["·","Wie werden die Zutaten der Kuchen für anderen Kuchenformen berechnet?\nAls Grundlage dient das Volumen des Kuchens gemäss Originalrezept; dieses wird in das Verhältnis des Kuchenvolumens des Wunschrezeptes gesetzt und so die Zutaten entsprechend berechnet."]
["Mappe Portionen-Kalkulator"]
["·","Wofür dient diese Mappe?\nDiese Mappe wurde als Arbeitserleichterung erstellt, damit Du Deine Torte hier \"bauen\" kannst: hier kannst Du mit den Tortengrössen (Höhe, Durchmesser, Länge, Breite) \"spielen\", um herauszufinden, welche Grösse Du effektiv benötigst. Je nach Eingaben werden die Anzahl Portionen/Stück aufgrund der Volumen der gewählten Kuchen errechnet. "]
["Mappe Torten-Kalkulator"]
["·","Wofür dient diese Mappe?\nDiese Mappe wurde als Arbeitserleichterung erstellt, damit Du Deine Torte hier \"bauen\" kannst: oft kommt es z.B. vor, dass Du die Anzahl Portionen/Stück kennst, aber keine Idee hast, wie gross die Torte sein muss: hier gibst Du die Anzahl Portionen und die angenommene Höhe der Torte ein, und Du bekommst einen Vorschlag zum Durchmesser bzw. Länge/Breite der Torte."]
["Mappe Torten-Aufbau"]
["·","Wofür dient diese Mappe?\nHier kannst Du die Grösse Deine Wunschtorte berechnen: gib den Durchmesser (bzw. Länge/Breite) der untersten Torte, die Höhe jeder einzelnen Torte und den gewünschten seitlichen Abstand bis zur nächsten Torte ein und es wird Dir der Durchmesser (bzw. Länge/Breite) pro Torte inkl. Anzahl Portionen automatisch errechnet."]
["Mappe Torten-Portionen"]
["·","Wozu dient diese Mappe?\nHier findest Du eine Liste verschiedener Torten mit Durchmesser und Höhe, wo Du die Anzahl Portionen ablesen kannst. Diese Mappe dient nur als Hilfe - hier sind keine Eingaben möglich."]
["Systemvoraussetzungen"]
["·","Welches sind die Systemvoraussetzungen um mit diesem Tool arbeiten zu können?\nBenötigte Office-Applikation: Windows Office MS Excel 2007 \nDieses Tool wurde unter Windows 8.1 mit 8.00 GB Arbeitsspeicher, auf einem 64-Bit-Betriebssystem erstellt."]
["·","Läuft dieses Tool auch auf Macintosh?\nNEIN Dieses Tool wurde NICHT auf Macintosh getestet und ist nicht kompatibel. Zur Zeit ist auch keine \"Übersetzung\" für Macintosh geplant."]
["Support"]
["·","Gibt es dieses Tool auch in anderen Sprachen (Französisch, Italienisch, Englisch)?\nNEIN, dieses Tool wurde ausschliesslich auf Deutsch erstellt - eine Übersetzung in andere Sprachen ist zur Zeit auch nicht geplant."]
["·","Wie wurde dieses Tool getestet?\nDieses Tool wurde mehreren Hobby-Konditoren/Cake Designern zu Testzwecken zur Verfügung gestellt; die daraus gefundenen Anpassungs- bzw. Änderungswünsche wurden laufend aufgenommen und die Nutzung optimiert. "]
["·","Gibt es eine Supportstelle, wenn ich irgendwelche Fragen/Probleme mit bzw. zum Tool habe?\nBei Fragen und/oder Problemen stehe ich Dir selbstverständlich gerne zur Verfügung: Grundsätzlich allerdings habe ich keine Kapazität, um irgendwelche Support-Aufgaben zu übernehmen | Einmal durch den Benutzer überschriebene Formeln werden durch mich nicht wieder hergestellt."]

{"sheet":"Änderungsnachweis","index":7,"n_rows":10,"n_cols":6,"rows_kept":10,"cut":false,"hidden":true,"merged":[[0,0,0,2]]}
[{"$f":"F1","v":"© 2016-2021 V08 | Einfach Backen - Marcel Paa"},null,null,null,{"$f":"MAX(E3:E29)","v":8},{"$f":"CONCATENATE(\"© \", D10,\" V0\",E1,\" | Einfach Backen - Marcel Paa\")","v":"© 2016-2021 V08 | Einfach Backen - Marcel Paa"}]
["Version","Datum","Bemerkung"]
[1,"08.12.2016","Ersterstellung durch Marcel Paa (Einfach Backen)",{"$f":"CONCATENATE(RIGHT(B$3,4),\"-\",RIGHT(B$9,4))","v":"2016-2020"},{"$f":"A3","v":1}]
[2,"10.12.2016","Update durch Vreny Keller\n- Umrechnung: Re-Design der gesamten Datei\n- Umrechnung: Aufnahme des Makros zur Löschung der Eingabne\n- Umrechnung: Aufnahme der Portionenberechnung in Rubrik 1 und Rubrik 2\n- Umrechnung: Automatisierung zur Übernahme des Umrechnungsfaktors von Rubrik 3 in Rubrik 4\n- Umrechnung: Aufnahme der Rubrik 5 Portionen-Kalkulator\n- Umrechnung: Aufnahme der Rubrik 6 Torten-Kalkulator\n- Umrechnung: Optimierung einzelner Berechnungsformeln\n- Umrechnung: Aufnahme der Beschreibung der Arbeitsschritte\n- Torten-Portionen: Aufnahme der Mappe mit automatischer Berechnung","2016-2020",{"$f":"A4","v":2}]
[3,"13.12.2016","Update durch Vreny Keller\n- Aufnahme eines Begrüssungsfensters\n- Torten-Aufbau: Aufnahme der Mappe mit automatischer Berechnung\n- FAQ: Aufname der Mappe \"FAQ (Frequently Asked Questions)\"","2016-2020",3]
[4,"29.12.2016","Update durch Vreny Keller\n- Umrechnung: Rubrik 1 und 2 - Formeln im Bereich Tortenportionen optimiert, Anzahl Portionen summiert\n- Torten-Aufbau: diverse Erklärungen/Beschreibungen aufgenommen","2016-2020",4]
[5,"31.12.2016","Update durch Vreny Keller\n- Aufnahme eines Verabschiedungsfensters\n- Tortenaufbau: Hinweise auf Dessertbuffet aufgenommen\n- Umrechnung: Rubrik 5 Portionen-Kalkulator in eine separate Mappe verschoben\n- Umrechnung: Rubrik 6 Torten-Kalkulator in eine separate Mappe verschoben\n- FAQ: div. weitere Erklärungen aufgenommen\n- Inhalt: Begrüssung und Inhaltsverzeichnis aufgenommen\n- Alle Mappen: automatischer Passwortschutz beim Anklicken einer Mappe \n   => nur nicht gesperrte Zellen können bearbeitet werden","2016-2020",5]
[6,"14.01.2019","Update durch Vreny Keller\n- neues Logo, neue Farben","2016-2020",6]
[7,"01.03.2020","Update durch Vreny Keller\n- Corporate Identity, neue Schriftart \"Contax Sans 55\"","2016-2020",{"$f":"A9","v":7}]
[8,"06.03.2021","Update durch Vreny Keller\n- Corporate Identity, neues Logo MP eingefügt\n- auf allen Seiten einen Knofp \"Berechnen\" aufgenommen",{"$f":"CONCATENATE(RIGHT(B$3,4),\"-\",RIGHT(B10,4))","v":"2016-2021"},{"$f":"A10","v":8}]